[Event "American Cup Women Champions 2023"]
[Site "Saint Louis"]
[Date "2023.03.20"]
[Round "2.1"]
[White "Krush, Irina"]
[Black "Tokhirjonova, Gulrukhbegim"]
[Result "1-0"]
[ECO "D25"]
[WhiteElo "2432"]
[BlackElo "2332"]
[Annotator "TA"]
[PlyCount "101"]
[EventDate "2023.03.15"]
[EventType "k.o."]
[EventCountry "USA"]
[SourceTitle "playchess.com"]
[Source "ChessBase"]
[SourceQuality "1"]
[TimeControl "5400+30"]

{[%evp 11,101,37,41,0,45,52,59,61,73,64,95,34,47,33,81,62,66,51,125,104,187,135,154,149,200,114,109,115,113,108,102,75,124,51,50,46,50,41,60,55,60,59,70,46,60,43,90,90,90,89,90,83,124,118,118,107,122,111,125,85,131,120,331,330,346,346,344,346,316,313,499,506,521,0,272,0,523,520,494,500,464,454,2027,1504,1080,995,29978,29979,29979,29980,29993,29994]} 1. Nf3 {[%emt 0:00:07]} d5 {[%emt 0:03:25]} 2. d4 {[%emt 0:00:39]} Nf6 {[%emt 0:00:21]} 3. c4 {[%emt 0:00:29]} dxc4 {[%emt 0:01:07]} 4. e3 {[%emt 0:00:39]} Bg4 {[%emt 0:01:01]} 5. Bxc4 {[%emt 0:01:57]} e6 {[%emt 0:00:37]} 6. h3 {[%emt 0:00:32]} Bh5 {[%emt 0:00:38]} 7. Qb3 {[%emt 0:08:51] [#] D25: Queen's Gambit Accepted: 4 e3: sidelines and 4...Bg4.} Nbd7 $146 {[%emt 0:06:25]} ({Predecessor:} 7... Bxf3 8. gxf3 Nbd7 9. Nc3 Rb8 10. e4 b5 11. Be2 c5 12. Bf4 cxd4 13. Bxb8 Qxb8 14. Nxb5 Bc5 15. Rd1 e5 16. f4 {1-0 Bernadskiy,V (2594)-Godena,M (2448) Spilimbergo op 19th 2021 (4)}) 8. Qxb7 {[%emt 0:03:40]} c5 {[%emt 0:08:32]} 9. Nbd2 $1 {[%emt 0:07:39] White is slightly better.} Rb8 {[%emt 0:14:00]} 10. Qa6 {[%emt 0:09:57] White is much more active.} Qc7 {[%emt 0:02:57]} 11. Bb5 {[%emt 0:09:47]} (11. O-O $16) 11... Rb6 $14 {[%emt 0:24:16]} 12. Qa4 {[%emt 0:02:19]} a6 {[%emt 0:01:38]} 13. Be2 {[%emt 0:10:51]} cxd4 {[%emt 0:04:25]} 14. exd4 {[%emt 0:05:58]} (14. Nxd4 Bxe2 15. Nxe2 (15. Kxe2 Bb4 $11) 15... Be7) 14... Bg6 {[%emt 0:03:19]} (14... Bd6 $14) 15. O-O {[%emt 0:01:15]} (15. Bxa6 $6 Be7 $14) 15... Bc2 {[%emt 0:01:18]} (15... Be7 $16) 16. Nb3 {[%emt 0:02:59]} (16. b3 $18) 16... Bd6 {[%emt 0:08:30]} 17. Bd2 {[%emt 0:05:47][%cal Of1c1] Hoping for Rfc1!} (17. Bxa6 O-O 18. Be2 Qb7 $11) 17... Qb8 {[%emt 0:02:50]} (17... O-O $16 {was called for.}) 18. Rfc1 {[%emt 0:01:01]} (18. Bxa6 O-O $14) (18. Ne5 $18) 18... Bxb3 $16 {[%emt 0:01:03]} 19. axb3 {[%emt 0:00:03] [#] Ne5 is the strong threat.} O-O {[%emt 0:00:16]} 20. Bc4 {[%emt 0:04:04]} h6 {[%emt 0:01:43]} 21. Re1 {[%emt 0:02:03]} Bf4 {[%emt 0:03:56]} (21... Rb7 $142) 22. Qa5 {[%emt 0:01:23]} ({Don't take} 22. Bxa6 Bxd2 23. Nxd2 Rb4 $14) (22. Bc3 $16) 22... Bxd2 $14 {[%emt 0:01:13]} 23. Qxd2 {[%emt 0:00:06]} Nd5 {[%emt 0:00:35]} 24. Ra5 {[%emt 0:01:24]} N7f6 {[%emt 0:00:55]} 25. Ne5 {[%emt 0:02:37]} ({Much weaker is} 25. Bxa6 Rxb3 26. Ne5 Qb6 $11) 25... Nb4 {[%emt 0:01:18]} 26. Ra4 {[%emt 0:03:35][%cal Oa4b4]} Qb7 {[%emt 0:02:01]} 27. Nd3 {[%emt 0:04:58]} Nxd3 {[%emt 0:00:44]} 28. Qxd3 {[%emt 0:00:02][%cal Ra4a6]} ({Reject} 28. Bxd3 Rxb3 29. Rb1 Rb6 $11) 28... Rd8 {[%emt 0:00:19]} (28... Rb8 $14) 29. Rxa6 $16 {[%emt 0:00:58]} Rxa6 {[%emt 0:00:17]} 30. Bxa6 {[%emt 0:00:03]} Qb6 {[%emt 0:00:23]} 31. Rd1 {[%emt 0:03:59]} e5 {[%emt 0:00:47][%cal Rd8d4]} 32. Bc4 {[%emt 0:00:14]} Rxd4 {[%emt 0:00:55]} 33. Qe2 {[%emt 0:01:35]} Ne4 {[%emt 0:01:43]} 34. Rxd4 {[%emt 0:02:47]} Qxd4 {[%emt 0:00:02][%mdl 4096] Endgame KQB-KQN} 35. b4 {[%emt 0:00:43]} Nd2 {[%emt 0:03:34]} (35... Nxf2 36. Bxf7+ Kxf7 37. Qxf2+ Ke6 38. Qxd4 exd4 39. Kf2 $18) (35... Kf8 $142) 36. b3 {[%emt 0:00:29]} e4 $2 {[%emt 0:00:03]} (36... Kf8 $16) 37. Qe3 $18 {[%emt 0:01:26]} Qa1+ {[%emt 0:01:13]} 38. Kh2 {[%emt 0:00:02]} Qe5+ {[%emt 0:00:16]} 39. Qg3 {[%emt 0:02:06]} Qf6 {[%emt 0:00:31]} 40. b5 {[%emt 0:00:27] Threatens to win with Qe3.} g5 {[%emt 0:00:45]} (40... Kh7 {is a better defense.} 41. Qe3 Qd6+ 42. Kh1 f5) 41. Qe3 {[%emt 0:00:51]} Qe5+ {[%emt 0:00:14]} 42. Qg3 {[%emt 0:00:35]} Qf6 {[%emt 0:00:01]} 43. Qe3 $2 {[%emt 0:00:30]} (43. Be2) 43... Qe5+ {[%emt 0:00:01] [#]} 44. g3 $1 {[%emt 0:00:23]} Nf3+ {[%emt 0:01:40]} 45. Kg2 {[%emt 0:00:02]} Kg7 {[%emt 0:00:40]} 46. b6 {[%emt 0:00:21]} f5 {[%emt 0:00:28]} (46... Nd4 $142 47. b7 Nc6) 47. b7 {[%emt 0:00:27] White wants to mate with Qa7.} Qa1 {[%emt 0:00:31] Wards off Qa7} 48. Bf1 {[%emt 0:00:16]} (48. b8=B $2 Qg1#) 48... Qe5 {[%emt 0:00:33]} 49. Qa7 {[%emt 0:00:17] White mates.} Ne1+ {[%emt 0:00:29]} 50. Kh1 {[%emt 0:00:09]} Qd5 {[%emt 0:00:29]} 51. b8=Q+ {[%emt 0:00:11] Weighted Error Value: White=0.29 (precise) /Black=0.35} 1-0

[Event "American Cup Women Champions 2023"]
[Site "Saint Louis"]
[Date "2023.03.20"]
[Round "2.1"]
[White "Lee, Alice"]
[Black "Paikidze, Nazi"]
[Result "1/2-1/2"]
[ECO "A43"]
[WhiteElo "2362"]
[BlackElo "2314"]
[Annotator "TA"]
[PlyCount "139"]
[EventDate "2023.03.15"]
[EventType "k.o."]
[EventCountry "USA"]
[SourceTitle "playchess.com"]
[Source "ChessBase"]
[SourceQuality "1"]
[TimeControl "5400+30"]

{[%evp 12,139,43,29,82,82,77,64,77,67,79,78,65,9,14,15,12,7,18,-5,-15,0,16,16,12,0,3,8,15,7,6,0,0,0,0,0,-10,-13,-13,-28,-30,-32,-38,-35,10,10,29,33,29,-20,-12,-60,-67,-63,217,9,9,9,9,9,9,9,11,6,8,10,229,8,8,8,8,8,8,2,2,2,2,2,2,0,0,0,0,0,0,0,0,0,0,0,8,0,0,0,0,0,0,0,0,0,0,0,0,0,0,0,0,0,0,0,0,0,0,0,0,0,0,0,0,0,0,0,0,0,0,0,0,0,0,0]} 1. d4 {[%emt 0:00:01]} c5 {[%emt 0:00:04]} 2. d5 {[%emt 0:00:05]} g6 {[%emt 0:00:04]} 3. Nc3 {[%emt 0:00:13]} Bg7 {[%emt 0:00:18]} 4. e4 {[%emt 0:00:08]} d6 {[%emt 0:00:19]} 5. Nf3 {[%emt 0:00:21]} Nf6 {[%emt 0:01:16]} 6. Bb5+ {[%emt 0:00:11]} Bd7 {[%emt 0:00:58]} 7. a4 {[%emt 0:00:07]} a6 {[%emt 0:00:03] A43: Schmid Benoni.} (7... O-O $11) 8. Be2 $16 {[%emt 0:04:00]} Bg4 {[%emt 0:01:52]} 9. h3 {[%emt 0:01:32]} Bxf3 {[%emt 0:00:20] White is slightly better.} 10. Bxf3 {[%emt 0:00:17]} Nbd7 {[%emt 0:07:10] [#]} 11. Be2 $146 {[%emt 0:10:16]} ({Predecessor:} 11. g4 Ne5 12. Bg2 h6 13. O-O O-O 14. Qe2 Qc7 15. Be3 g5 16. b3 Ng6 17. Qd2 Nd7 18. Rad1 Qa5 {½-½ Auer,G (1932)-Tapia Egoavil,C (1799) Regionalliga Nord-Ost 1819 2018 (4.7)}) 11... Qa5 {[%emt 0:09:04]} 12. O-O {[%emt 0:06:04]} ({White should try} 12. Bd2 $14) 12... b5 $1 $11 {[%emt 0:02:04]} 13. Bf3 {[%emt 0:09:29]} (13. axb5 $2 {loses.} Qxa1 14. bxa6 O-O $19) 13... b4 {[%emt 0:06:28]} 14. Nb1 {[%emt 0:02:04][%cal Bc3b1,Bb1d2,Bd2c4][%mdl 32]} Ne5 {[%emt 0:06:53]} 15. Bf4 {[%emt 0:08:23]} Nxf3+ {[%emt 0:13:16]} 16. Qxf3 {[%emt 0:00:17]} Nd7 {[%emt 0:02:24]} 17. Nd2 {[%emt 0:01:16]} Qc7 {[%emt 0:06:07]} 18. Qb3 {[%emt 0:05:40]} c4 {[%emt 0:04:49]} 19. Nxc4 {[%emt 0:12:45]} Rc8 {[%emt 0:01:19]} 20. Nd2 {[%emt 0:01:49]} Qxc2 {[%emt 0:01:15]} 21. Qxc2 {[%emt 0:04:16]} Rxc2 {[%emt 0:00:02]} 22. Rac1 {[%emt 0:00:09]} Rxc1 {[%emt 0:00:14]} 23. Rxc1 {[%emt 0:00:02][%cal Rc1c8] [#]} Nc5 {[%emt 0:01:38]} 24. Rc4 {[%emt 0:08:55]} a5 {[%emt 0:14:41]} 25. Be3 {[%emt 0:02:24] And now b3 would win.} Nxa4 {[%emt 0:00:54]} 26. b3 {[%emt 0:00:01] Threatens to win with Rc8+.} Nc3 {[%emt 0:01:21]} 27. Bb6 {[%emt 0:00:39]} O-O {[%emt 0:01:37] ...Bh6 is the strong threat.} (27... f5 $5 {[%cal Rf5e4]}) 28. Bxa5 {[%emt 0:01:11]} Ra8 {[%emt 0:01:03]} 29. Bxb4 {[%emt 0:00:26]} Ne2+ {[%emt 0:00:40]} 30. Kh2 {[%emt 0:01:13]} (30. Kf1 {was preferrable.} Nf4 31. Nf3) 30... Bd4 {[%emt 0:00:58]} 31. Rc2 {[%emt 0:02:13]} (31. g3 $11) 31... Bxf2 $15 {[%emt 0:04:23]} 32. Nf1 {[%emt 0:00:23] Wards off Bg3+} Bg1+ {[%emt 0:02:09]} (32... Ra1 $1 $15 33. g4 Bd4 34. Rxe2 Rxf1) 33. Kh1 $11 {[%emt 0:00:01]} Ra1 $1 {[%emt 0:01:07]} 34. Rxe2 {[%emt 0:01:17]} Rxf1 {[%emt 0:00:06]} 35. Re1 {[%emt 0:00:34]} Rxe1 {[%emt 0:00:04]} 36. Bxe1 {[%emt 0:00:02][%mdl 4096] Endgame KB-KB} Bd4 {[%emt 0:01:02]} 37. g4 {[%emt 0:03:02]} Kg7 {[%emt 0:01:05]} 38. Kg2 {[%emt 0:00:48]} f5 $2 {[%emt 0:02:48]} 39. gxf5 $2 {[%emt 0:03:17]} (39. exf5 $18 gxf5 40. g5 (40. gxf5 Kf6 $11)) 39... gxf5 {[%emt 0:00:04] The position is equal.} 40. Kf3 {[%emt 0:00:05]} Kf6 {[%emt 0:01:21]} 41. b4 {[%emt 0:01:58] Bh4+ would be deadly.} Bb6 $1 {[%emt 0:02:25]} 42. Kf4 {[%emt 0:06:32]} e5+ {[%emt 0:00:46]} 43. dxe6 {[%emt 0:00:58]} fxe4 {[%emt 0:00:03]} 44. Kxe4 {[%emt 0:00:20]} Kxe6 {[%emt 0:00:03]} 45. h4 {[%emt 0:01:13]} d5+ {[%emt 0:01:10]} 46. Kf4 {[%emt 0:00:09]} Kf6 {[%emt 0:00:57]} 47. Bc3+ {[%emt 0:01:25]} Ke6 {[%emt 0:02:01]} 48. Be1 {[%emt 0:03:54]} Kf6 {[%emt 0:00:07]} 49. h5 {[%emt 0:00:24]} Ke6 {[%emt 0:00:27]} 50. Bd2 {[%emt 0:01:18]} Kf6 {[%emt 0:00:51]} 51. Bc3+ {[%emt 0:00:07]} Ke6 {[%emt 0:00:09]} 52. Bg7 {[%emt 0:00:23]} Kf7 {[%emt 0:00:22]} 53. Be5 {[%emt 0:01:27]} Ke6 {[%emt 0:00:03]} 54. Bb2 {[%emt 0:00:13]} Bf2 {[%emt 0:00:36]} 55. Kf3 {[%emt 0:01:04]} Bb6 {[%emt 0:00:26]} 56. Kf4 {[%emt 0:00:01]} Bf2 {[%emt 0:00:02]} 57. Bg7 {[%emt 0:00:52]} Kf7 {[%emt 0:00:35]} 58. h6 {[%emt 0:00:10]} Ke6 {[%emt 0:00:20]} 59. Bf8 {[%emt 0:00:04]} Bb6 {[%emt 0:00:46]} 60. Bc5 {[%emt 0:00:28]} Bxc5 {[%emt 0:00:54]} 61. bxc5 {[%emt 0:00:02] KPP-KPP} d4 {[%emt 0:00:10]} 62. Ke4 {[%emt 0:00:26]} d3 $1 {[%emt 0:00:02][%mdl 64] [#] ( -> ...d2). Deflection} 63. Kxd3 {[%emt 0:00:11] Threatening mate with Ke4. KPP-KP} Kd5 {[%emt 0:00:01]} 64. Ke3 {[%emt 0:00:13]} Kxc5 {[%emt 0:00:03] KP-KP} 65. Ke4 {[%emt 0:00:05]} Kd6 {[%emt 0:00:02]} 66. Kf5 {[%emt 0:00:09]} Ke7 {[%emt 0:00:03]} 67. Ke5 {[%emt 0:00:04]} Kf7 {[%emt 0:00:02]} 68. Kf5 {[%emt 0:00:05]} Ke7 {[%emt 0:00:01]} 69. Ke5 {[%emt 0:00:05]} Kf7 {[%emt 0:00:01]} 70. Kf5 {[%emt 0:00:15] Weighted Error Value: White=0.15 (very precise) /Black=0.21 (precise)} 1/2-1/2

[Event "American Cup Women Champions 2023"]
[Site "Saint Louis"]
[Date "2023.03.20"]
[Round "2.2"]
[White "Tokhirjonova, Gulrukhbegim"]
[Black "Krush, Irina"]
[Result "1/2-1/2"]
[ECO "D40"]
[WhiteElo "2332"]
[BlackElo "2432"]
[Annotator "TA"]
[PlyCount "106"]
[EventDate "2023.03.15"]
[EventType "k.o."]
[EventCountry "USA"]
[SourceTitle "playchess.com"]
[Source "ChessBase"]
[SourceQuality "1"]
[TimeControl "5400+30"]

{[%evp 24,106,-30,-29,-14,-18,-15,-25,-8,-72,-51,-88,-80,-126,-134,-134,-129,-188,-190,-227,-258,-297,-255,-293,-301,-278,-252,-243,-210,-225,-222,-220,-111,-131,-121,-118,-124,-121,-116,-120,-77,-122,-79,-138,-54,-59,-59,-59,-59,-59,-59,-199,-182,-245,-253,-280,-270,-285,-268,-279,-278,-287,-282,-284,-262,-276,-279,-280,-272,-284,-254,-280,-262,-285,-263,-285,-237,-217,0,-256,0,-215,0,-236,0]} 1. c4 {[%emt 0:01:49]} e6 {[%emt 0:01:36]} 2. Nc3 {[%emt 0:00:17]} d5 {[%emt 0:02:13]} 3. e3 {[%emt 0:00:11]} dxc4 {[%emt 0:03:04]} 4. Bxc4 {[%emt 0:00:06]} Nf6 {[%emt 0:00:10]} 5. Nf3 {[%emt 0:00:19]} c5 {[%emt 0:00:09]} 6. O-O {[%emt 0:00:57]} a6 {[%emt 0:01:55]} 7. Be2 {[%emt 0:00:27]} Nc6 {[%emt 0:01:47]} 8. d4 {[%emt 0:00:29]} cxd4 {[%emt 0:03:27]} 9. exd4 {[%emt 0:00:26]} Be7 {[%emt 0:00:14]} 10. a3 {[%emt 0:01:39]} O-O {[%emt 0:01:43]} 11. Re1 {[%emt 0:00:22]} b5 {[%emt 0:01:14]} 12. Bg5 {[%emt 0:08:30]} Bb7 {[%emt 0:01:35]} 13. Bd3 {[%emt 0:04:49] [#]} Rc8 $146 {[%emt 0:07:48] D40: Queen's Gambit Declined: Semi-Tarrasch with 5 e3.} ({Predecessor:} 13... h6 14. Be3 b4 15. Ne2 Nd5 16. Ng3 Nxe3 17. fxe3 Qb6 18. Bc2 Rad8 19. Qd3 g6 20. h4 Qc7 21. h5 Qxg3 22. hxg6 Ne5 23. gxf7+ Rxf7 {0-1 Jung,B (1899)-Isserman,R (2273) Rhein Main op 11th 2008 (1)}) 14. Rc1 {[%emt 0:04:49]} Na5 {[%emt 0:08:28]} (14... h6 {simplifies} 15. Be3 b4 16. axb4 Nxb4 17. Bb1 Nbd5) 15. Ne5 {[%emt 0:06:17]} (15. Bxf6 {simplifies} Bxf6 16. Be4 Bc6 17. Qe2) 15... Nc4 {[%emt 0:01:08] Black has an edge.} 16. Bb1 {[%emt 0:07:04]} (16. Bxc4 $11 {remains equal.} bxc4 17. f3) 16... g6 $1 $17 {[%emt 0:05:51]} (16... Nxb2 17. Qc2 Rxc3 18. Qxc3 $16) 17. Bh6 {[%emt 0:15:12]} Nxb2 {[%emt 0:03:01]} 18. Qb3 {[%emt 0:07:09]} (18. Qe2 $142 Nc4 19. Bxf8 Kxf8 20. Ne4 (20. Nxf7 Kxf7 21. Qxe6+ Kf8 $17)) 18... Nc4 {[%emt 0:00:30][%cal Od8d4]} 19. Bxf8 {[%emt 0:04:57]} Bxf8 {[%emt 0:00:04]} 20. Nxc4 {[%emt 0:11:31]} (20. Ne2 $17) 20... Rxc4 $19 {[%emt 0:00:27][%cal Bc8c4,Bc4a4,Ba4a3][%mdl 32]} 21. Ne2 {[%emt 0:11:45]} Ra4 {[%emt 0:05:46]} 22. Nf4 {[%emt 0:02:23]} Rxa3 {[%emt 0:07:03]} (22... Rxd4 $2 23. Rcd1 $19) 23. Qb2 {[%emt 0:01:02]} Ra4 {[%emt 0:12:13]} 24. Rcd1 {[%emt 0:00:24]} Qd6 {[%emt 0:00:55]} 25. Ne2 {[%emt 0:02:37]} Ng4 {[%emt 0:04:09]} 26. Ng3 {[%emt 0:01:01]} Bg7 $1 {[%emt 0:00:30][%cal Rg7d4]} 27. Qe2 {[%emt 0:01:00] [#]} Bxd4 {[%emt 0:05:45]} 28. Qxg4 $17 {[%emt 0:03:08] [#]} Bxf2+ $1 {[%emt 0:00:07][%mdl 576] Discovered Attack, Double Attack. This pair of bishops is nice. White is weak on the dark squares} 29. Kf1 {[%emt 0:00:20]} (29. Kxf2 $2 Qc5+ 30. Re3 Rxg4 $19) 29... Rxg4 {[%emt 0:00:27]} ({Don't do} 29... Bxe1 30. Qxa4 Bd5 31. Qg4 Bxg3 32. Qxg3 $16 (32. hxg3 Qc6 $14)) 30. Rxd6 {[%emt 0:00:06]} Bxe1 {[%emt 0:00:31]} 31. Kxe1 {[%emt 0:00:09]} h5 {[%emt 0:02:56]} 32. Rb6 {[%emt 0:00:53]} Bd5 {[%emt 0:00:22] ...h4 would be deadly.} 33. Bd3 {[%emt 0:02:07] [#]} (33. Rxa6 $142 Bxg2 34. Rb6) 33... h4 {[%emt 0:00:18]} (33... Ra4 $1 $17 {Threatens to win with ...h4.} 34. Kf2 Ra3) 34. Nf1 $1 $15 {[%emt 0:00:08]} Rxg2 {[%emt 0:07:40] Strongly threatening ...Ra2.} 35. Rxa6 {[%emt 0:00:05]} b4 {[%emt 0:01:39][%cal Bb5b4,Bb4b3][%mdl 32] White must now prevent ...b3.} 36. Rb6 {[%emt 0:00:19]} b3 {[%emt 0:00:19] And now ...h3 would win.} 37. h3 {[%emt 0:01:06]} (37. Ne3 $15 Rxh2 38. Nxd5 exd5 39. Rxb3) 37... Kg7 {[%emt 0:01:57]} 38. Ne3 {[%emt 0:02:57]} (38. Ba6 {might work better.}) 38... Rg3 $1 $19 {[%emt 0:00:22][%csl LRe3,LRh3]} 39. Ke2 {[%emt 0:00:04]} Bf3+ {[%emt 0:02:17]} (39... Rxh3 $2 {loses.} 40. Nxd5 exd5 41. Rxb3 $19) 40. Kf2 {[%emt 0:00:14]} Rxh3 {[%emt 0:00:07]} 41. Rxb3 {[%emt 0:00:06]} Bh5 {[%emt 0:01:28]} 42. Be4 {[%emt 0:00:36]} Rh2+ {[%emt 0:01:11]} 43. Kg1 {[%emt 0:01:03]} Re2 {[%emt 0:00:47]} 44. Bg2 {[%emt 0:00:13]} g5 {[%emt 0:00:25]} 45. Bf1 {[%emt 0:00:09]} Rd2 {[%emt 0:00:57]} 46. Rb5 {[%emt 0:00:10]} Kf6 {[%emt 0:00:23]} 47. Rb4 {[%emt 0:00:21]} Bf3 {[%emt 0:00:56]} 48. Ra4 {[%emt 0:00:41]} Rb2 {[%emt 0:00:22]} 49. Bh3 {[%emt 0:00:53]} Re2 {[%emt 0:00:13]} 50. Ra3 {[%emt 0:00:16]} Rb2 {[%emt 0:02:10]} 51. Ra4 $1 {[%emt 0:00:55] Against Rb4} Re2 {[%emt 0:00:08]} 52. Ra3 {[%emt 0:00:36]} Rb2 {[%emt 0:00:01]} 53. Ra4 $1 {[%emt 0:01:09] Against Rb4} Re2 $2 {[%emt 0:00:48] Weighted Error Value: White=0.18 (very precise) /Black=0.35} ({Black should play} 53... Be2 $19 54. Bg2 Ke5 55. Ng4+ Bxg4 56. Rxg4 Kf5) 1/2-1/2

[Event "American Cup Women Champions 2023"]
[Site "Saint Louis"]
[Date "2023.03.20"]
[Round "2.2"]
[White "Paikidze, Nazi"]
[Black "Lee, Alice"]
[Result "0-1"]
[ECO "D12"]
[WhiteElo "2314"]
[BlackElo "2362"]
[Annotator "TA"]
[PlyCount "76"]
[EventDate "2023.03.15"]
[EventType "k.o."]
[EventCountry "USA"]
[SourceTitle "playchess.com"]
[Source "ChessBase"]
[SourceQuality "1"]
[TimeControl "5400+30"]

{[%evp 13,76,22,27,31,30,21,21,15,27,27,37,-2,4,0,1,14,4,-71,-56,-56,-55,-78,-8,-27,-13,-102,-110,-97,-124,-131,-37,-50,-49,-84,-89,-89,-76,-213,-210,-222,-210,-429,-421,-558,-397,-524,-431,-757,-426,-982,-943,-29974,-29974,-29974,-29975,-29977,-29974,-29974,-29975,-29980,-29981,-29977,-29978,-29982,-29982]} 1. d4 {[%emt 0:00:03]} d5 {[%emt 0:00:03]} 2. c4 {[%emt 0:00:04]} c6 {[%emt 0:00:04]} 3. Nf3 {[%emt 0:00:06]} Nf6 {[%emt 0:00:05]} 4. e3 {[%emt 0:00:06]} Bf5 {[%emt 0:00:08]} 5. Nc3 {[%emt 0:00:08]} e6 {[%emt 0:00:05]} 6. Nh4 {[%emt 0:00:07]} Bg6 {[%emt 0:00:05]} 7. Nxg6 {[%emt 0:00:24]} hxg6 {[%emt 0:00:04]} 8. Bd2 {[%emt 0:01:11] D12: Slav Defence: 3 Nf3 Nf6 4 e3 Bf5.} Nbd7 {[%emt 0:02:34]} 9. Qc2 {[%emt 0:00:28]} Rc8 {[%emt 0:04:48]} 10. c5 {[%emt 0:00:45] The position is equal. 10.Be2 is a critical line.} Be7 {[%emt 0:02:33] [#]} 11. g3 $146 {[%emt 0:04:44]} ({Predecessor:} 11. b4 e5 12. g3 O-O 13. Bh3 e4 14. Bf1 Nh7 15. Be2 Ndf6 16. Qd1 Qd7 17. h3 {½-½ Karpenko,A (2329)-Baranowski,T (2405) EU-ch 2019 sf05 email}) 11... e5 {[%emt 0:05:54]} 12. O-O-O {[%emt 0:04:36]} Ng4 {[%emt 0:09:18][%cal Bf6g4,Bg4h2,Bh2f3][%mdl 32]} 13. Be1 {[%emt 0:03:20]} Rxh2 {[%emt 0:03:31]} (13... Nxh2 $2 14. f3 $18) 14. Rxh2 {[%emt 0:01:46]} Nxh2 {[%emt 0:00:03]} 15. Bh3 {[%emt 0:06:39]} (15. Be2 $11) 15... e4 $17 {[%emt 0:10:37]} 16. f4 {[%emt 0:01:21]} Nf3 {[%emt 0:00:12]} 17. Bf2 {[%emt 0:00:51][%cal Oc3e4]} Qa5 {[%emt 0:07:24]} (17... f5 $17 {Threatens to win with ...Nf6.} 18. g4 g5 19. gxf5 gxf4) 18. Rh1 {[%emt 0:06:25]} Rc7 {[%emt 0:16:01]} 19. g4 {[%emt 0:09:54] [#]} (19. Bg4 $11 {keeps the balance.}) 19... b6 $1 {[%emt 0:05:15]} 20. cxb6 {[%emt 0:00:14]} Nxb6 {[%emt 0:00:49]} 21. Bg2 {[%emt 0:19:51] [#]} Nc4 {[%emt 0:10:31] A dynamic duo of knights.} (21... c5 $1 $17 {[%cal Rc5d4] White must now prevent ...cxd4.} 22. Bxf3 cxd4 23. exd4 (23. Rh8+ $2 Kd7 $19) 23... Na4) 22. Rh8+ {[%emt 0:07:19]} ({But not} 22. Nxe4 $2 Rb7 23. b3 (23. Bxf3 $2 {too greedy.} Rxb2 $19) 23... dxe4 $19) 22... Kd7 {[%emt 0:00:24] And now ...Rb7 would win.} 23. Rb8 {[%emt 0:01:54] Wards off Rb7} Rc8 {[%emt 0:04:16] Dancing on a razor blade. Black has more active pieces.} 24. Rxc8 {[%emt 0:06:33]} Kxc8 {[%emt 0:00:01]} 25. Bxf3 {[%emt 0:06:57] White does not recover from this.} ({Don't blunder} 25. Nxe4 $2 Ne1 26. Qc3 Qxc3+ 27. Nxc3 Nd3+ 28. Kd1 Nxf2+ $19) (25. Bf1 $17 {was the only chance.} Nfd2 26. Be2) 25... exf3 $19 {[%emt 0:00:07]} 26. e4 {[%emt 0:04:09]} Bb4 {[%emt 0:02:44]} 27. Nb1 {[%emt 0:07:21]} (27. exd5 Bxc3 28. Qxc3 Qxd5 29. Qb3) 27... Qxa2 {[%emt 0:02:07] Hoping for ...dxe4.} 28. exd5 {[%emt 0:00:21]} cxd5 {[%emt 0:00:02]} 29. f5 {[%emt 0:01:09]} g5 {[%emt 0:00:52]} 30. f6 {[%emt 0:00:59]} (30. b3 $142 Qxc2+ 31. Kxc2) 30... g6 {[%emt 0:01:04] ...Bd6 would be deadly.} 31. Be3 {[%emt 0:00:59]} (31. b3 $142 Qxc2+ 32. Kxc2) 31... Kd7 {[%emt 0:02:32]} 32. Bxg5 {[%emt 0:01:47] [#]} Qxb2+ $1 {[%emt 0:01:03][%mdl 512] Black mates.} 33. Qxb2 {[%emt 0:00:20]} Nxb2 {[%emt 0:00:02]} 34. Nd2 {[%emt 0:01:16]} Bxd2+ {[%emt 0:00:16]} 35. Kxd2 {[%emt 0:00:08] KB-KN} Nc4+ {[%emt 0:00:21]} 36. Ke1 {[%emt 0:01:38]} Nd6 {[%emt 0:00:11]} 37. Bc1 {[%emt 0:00:58]} Ne4 {[%emt 0:00:07]} 38. g5 {[%emt 0:00:04]} f2+ {[%emt 0:00:06] Weighted Error Value: White=0.81/Black=0.43} 0-1